[Event "Early-Titled-Tuesday-Blitz-January-23-2024"]
[Site "Chess.com"]
[Date "2024.01.23"]
[Round "4"]
[White "Slovineanu"]
[Black "KIEV-1"]
[Result "1-0"]
[WhiteElo "2395"]
[BlackElo "2238"]
[TimeControl "180+1"]
[EndTime "8:39:12 PST"]
[Termination "Slovineanu won by resignation"]

1. d4 {[%clk 0:03:00.9]} 1... d5 {[%clk 0:02:59.4]} 2. Nf3 {[%clk 0:03:00.8]}
2... Nf6 {[%clk 0:02:59.3]} 3. c4 {[%clk 0:03:00.8]} 3... c6 {[%clk 0:02:59.3]}
4. e3 {[%clk 0:03:01]} 4... e6 {[%clk 0:02:59.3]} 5. Nbd2 {[%clk 0:03:01.1]}
5... Bd6 {[%clk 0:02:59.4]} 6. Bd3 {[%clk 0:03:01.7]} 6... O-O {[%clk
0:02:59.6]} 7. O-O {[%clk 0:03:01.3]} 7... Nbd7 {[%clk 0:02:59.7]} 8. e4 {[%clk
0:03:01.4]} 8... dxe4 {[%clk 0:02:59]} 9. Nxe4 {[%clk 0:03:01.9]} 9... Nxe4
{[%clk 0:02:58.9]} 10. Bxe4 {[%clk 0:03:02.8]} 10... h6 {[%clk 0:02:39.7]} 11.
Bc2 {[%clk 0:03:01.5]} 11... Nf6 {[%clk 0:02:37.4]} 12. b3 {[%clk 0:03:00.6]}
12... Qc7 {[%clk 0:02:23.1]} 13. Bb2 {[%clk 0:02:56.4]} 13... Rd8 {[%clk
0:02:19.3]} 14. Qe2 {[%clk 0:02:44.3]} 14... b6 {[%clk 0:02:10.8]} 15. Rad1
{[%clk 0:02:40.2]} 15... Bb7 {[%clk 0:02:07.1]} 16. Rd2 {[%clk 0:02:31.3]} 16...
Re8 {[%clk 0:01:10.5]} 17. Rfd1 {[%clk 0:02:29.2]} 17... Bf4 {[%clk 0:01:08.7]}
18. Rd3 {[%clk 0:02:26]} 18... c5 {[%clk 0:00:57.5]} 19. dxc5 {[%clk 0:02:14.1]}
19... bxc5 {[%clk 0:00:29.6]} 20. Bxf6 {[%clk 0:01:40.2]} 20... gxf6 {[%clk
0:00:27.5]} 21. g3 {[%clk 0:01:39.4]} 21... Be5 {[%clk 0:00:21.2]} 22. Rd7
{[%clk 0:00:51.5]} 22... Qc6 {[%clk 0:00:21.5]} 23. Rxb7 {[%clk 0:00:52]} 23...
Qxb7 {[%clk 0:00:21.6]} 24. Be4 {[%clk 0:00:52.6]} 24... Qc7 {[%clk 0:00:19.3]}
25. Bxa8 {[%clk 0:00:51.3]} 25... Rxa8 {[%clk 0:00:20.2]} 26. Qd2 {[%clk
0:00:47.3]} 26... Qc6 {[%clk 0:00:17.2]} 27. Kg2 {[%clk 0:00:44.3]} 27... Bd4
{[%clk 0:00:16.8]} 28. Qxh6 {[%clk 0:00:42.6]} 28... e5 {[%clk 0:00:16]} 29. Qh5
{[%clk 0:00:36.6]} 29... Rd8 {[%clk 0:00:16.1]} 30. Re1 {[%clk 0:00:28]} 30...
e4 {[%clk 0:00:15.2]} 31. Qg4+ {[%clk 0:00:27.1]} 31... Kf8 {[%clk 0:00:14]} 32.
Qxe4 {[%clk 0:00:27.5]} 32... Qd6 {[%clk 0:00:14.6]} 33. Qh7 {[%clk 0:00:23.1]}
33... Be5 {[%clk 0:00:13.3]} 34. Qh6+ {[%clk 0:00:19.8]} 34... Kg8 {[%clk
0:00:13.6]} 35. Nxe5 {[%clk 0:00:19.1]} 35... fxe5 {[%clk 0:00:14.2]} 36. Qxd6
{[%clk 0:00:18.9]} 36... Rxd6 {[%clk 0:00:15.1]} 37. Rxe5 {[%clk 0:00:18.9]}
37... Rd2 {[%clk 0:00:15.8]} 38. Rxc5 {[%clk 0:00:18.9]} 38... Rxa2 {[%clk
0:00:16.5]} 39. Rc7 {[%clk 0:00:18.6]} 39... Rb2 {[%clk 0:00:17]} 40. Rxa7
{[%clk 0:00:18.1]} 40... Rxb3 {[%clk 0:00:17.4]} 41. Rc7 {[%clk 0:00:18.2]}
41... Rc3 {[%clk 0:00:18.3]} 42. c5 {[%clk 0:00:18.4]} 42... Rc2 {[%clk
0:00:19.2]} 43. c6 {[%clk 0:00:19]} 43... Kg7 {[%clk 0:00:20.1]} 44. h4 {[%clk
0:00:19.3]} 44... Rc5 {[%clk 0:00:20.3]} 45. g4 {[%clk 0:00:19.1]} 45... Kf6
{[%clk 0:00:20.4]} 46. Rc8 {[%clk 0:00:18.5]} 46... Kg7 {[%clk 0:00:20.2]} 47.
Kg3 {[%clk 0:00:18.7]} 47... Kh7 {[%clk 0:00:20.6]} 48. f3 {[%clk 0:00:19.2]}
48... Kg7 {[%clk 0:00:21]} 49. h5 {[%clk 0:00:19]} 49... Kh7 {[%clk 0:00:21.6]}
50. f4 {[%clk 0:00:18.3]} 50... Kg7 {[%clk 0:00:22.2]} 51. g5 {[%clk 0:00:18.8]}
51... Kh7 {[%clk 0:00:22.9]} 52. Kg4 {[%clk 0:00:19.3]} 52... Kg7 {[%clk
0:00:23.4]} 53. h6+ {[%clk 0:00:19.5]} 53... Kh7 {[%clk 0:00:23.4]} 54. Rf8
{[%clk 0:00:20]} 54... Rxc6 {[%clk 0:00:23.1]} 55. Rxf7+ {[%clk 0:00:20.4]}
55... Kh8 {[%clk 0:00:24]} 56. Ra7 {[%clk 0:00:20.5]} 56... Rc8 {[%clk
0:00:23.9]} 57. g6 {[%clk 0:00:20.2]} 57... Rd8 {[%clk 0:00:23.9]} 58. Kg5
{[%clk 0:00:20.2]} 58... Rc8 {[%clk 0:00:23.5]} 59. Rf7 {[%clk 0:00:18.4]} 59...
Rd8 {[%clk 0:00:23.7]} 60. g7+ {[%clk 0:00:18.5]} 60... Kg8 {[%clk 0:00:22.5]}
61. Rf8+ {[%clk 0:00:17.5]} 61... Rxf8 {[%clk 0:00:22.7]} 62. gxf8=Q+ {[%clk
0:00:17.2]} 62... Kxf8 {[%clk 0:00:23.6]} 63. Kg6 {[%clk 0:00:17.3]} 63... Kg8
{[%clk 0:00:24]} 64. f5 {[%clk 0:00:16.9]} 64... Kh8 {[%clk 0:00:24.9]} 65. Kf7
{[%clk 0:00:16.5]} 65... Kh7 {[%clk 0:00:25.3]} 66. Ke7 {[%clk 0:00:17.2]} 66...
Kh8 {[%clk 0:00:26.2]} 67. f6 {[%clk 0:00:17.7]} 67... Kh7 {[%clk 0:00:27.1]}
68. f7 {[%clk 0:00:17.6]} 1-0

[Event "Early-Titled-Tuesday-Blitz-January-23-2024"]
[Site "Chess.com"]
[Date "2024.01.23"]
[Round "4"]
[White "Shahdad2007"]
[Black "Roman_Ovetchkin"]
[Result "1-0"]
[WhiteElo "2462"]
[BlackElo "2648"]
[TimeControl "180+1"]
[EndTime "8:39:13 PST"]
[Termination "Shahdad2007 won on time"]

1. Nf3 {[%clk 0:03:00.9]} 1... Nf6 {[%clk 0:02:59.2]} 2. g3 {[%clk 0:03:01]}
2... c5 {[%clk 0:02:55.8]} 3. Bg2 {[%clk 0:03:01.1]} 3... g6 {[%clk 0:02:56]} 4.
O-O {[%clk 0:03:00.7]} 4... Bg7 {[%clk 0:02:56.6]} 5. c4 {[%clk 0:02:55.8]} 5...
O-O {[%clk 0:02:54.5]} 6. d4 {[%clk 0:02:55]} 6... cxd4 {[%clk 0:02:54.2]} 7.
Nxd4 {[%clk 0:02:55.5]} 7... Nc6 {[%clk 0:02:54.8]} 8. Nc3 {[%clk 0:02:52.8]}
8... Qa5 {[%clk 0:02:53.7]} 9. Nb3 {[%clk 0:02:45.7]} 9... Qh5 {[%clk
0:02:50.9]} 10. e4 {[%clk 0:02:45.8]} 10... Qxd1 {[%clk 0:02:42.1]} 11. Rxd1
{[%clk 0:02:45.6]} 11... d6 {[%clk 0:02:42.4]} 12. c5 {[%clk 0:02:19.2]} 12...
Ne8 {[%clk 0:02:40.9]} 13. Be3 {[%clk 0:02:15.5]} 13... Bg4 {[%clk 0:02:34.3]}
14. Rd2 {[%clk 0:02:11.3]} 14... a5 {[%clk 0:01:52.4]} 15. a4 {[%clk 0:01:45]}
15... Be6 {[%clk 0:01:47.9]} 16. Nd5 {[%clk 0:01:45.2]} 16... Rd8 {[%clk
0:01:32.6]} 17. Rc1 {[%clk 0:01:42.8]} 17... Nf6 {[%clk 0:01:28.5]} 18. cxd6
{[%clk 0:01:35.6]} 18... Rxd6 {[%clk 0:01:18.5]} 19. Nxe7+ {[%clk 0:01:34.9]}
19... Nxe7 {[%clk 0:01:18.4]} 20. Rxd6 {[%clk 0:01:33.8]} 20... Bxb3 {[%clk
0:01:18.9]} 21. Rc7 {[%clk 0:01:30.3]} 21... Nc8 {[%clk 0:01:09.4]} 22. Rd2
{[%clk 0:01:25.9]} 22... b6 {[%clk 0:01:04.1]} 23. Bh3 {[%clk 0:00:59.1]} 23...
Nxe4 {[%clk 0:00:53.1]} 24. Rd3 {[%clk 0:00:59.6]} 24... Bxa4 {[%clk 0:00:43.5]}
25. Rxc8 {[%clk 0:00:53.6]} 25... Rxc8 {[%clk 0:00:30.9]} 26. Bxc8 {[%clk
0:00:54.5]} 26... Bxb2 {[%clk 0:00:28.5]} 27. Bxb6 {[%clk 0:00:53.3]} 27... Nf6
{[%clk 0:00:21.1]} 28. Bxa5 {[%clk 0:00:49.5]} 28... Kg7 {[%clk 0:00:21.3]} 29.
Bb7 {[%clk 0:00:45.3]} 29... Be5 {[%clk 0:00:20.4]} 30. Bf3 {[%clk 0:00:42.1]}
30... Bd7 {[%clk 0:00:18.6]} 31. Bb4 {[%clk 0:00:41.5]} 31... h5 {[%clk
0:00:16]} 32. Be7 {[%clk 0:00:41.2]} 32... Be6 {[%clk 0:00:14.1]} 33. Rd8 {[%clk
0:00:41.3]} 33... Bc3 {[%clk 0:00:11.4]} 34. h4 {[%clk 0:00:39.5]} 34... Ng4
{[%clk 0:00:10.4]} 35. Bc5 {[%clk 0:00:36.9]} 35... Nf6 {[%clk 0:00:09.7]} 36.
Rd3 {[%clk 0:00:36.4]} 36... Be5 {[%clk 0:00:09.2]} 37. Bc6 {[%clk 0:00:36.2]}
37... Ng4 {[%clk 0:00:08.9]} 38. f3 {[%clk 0:00:33.3]} 38... Nf6 {[%clk
0:00:08.4]} 39. Kg2 {[%clk 0:00:33.2]} 39... Bb2 {[%clk 0:00:08]} 40. Bd4 {[%clk
0:00:32.8]} 40... Bxd4 {[%clk 0:00:08]} 41. Rxd4 {[%clk 0:00:33.7]} 41... Kf8
{[%clk 0:00:08.1]} 42. Bb5 {[%clk 0:00:31.9]} 42... Ke7 {[%clk 0:00:08.2]} 43.
Be2 {[%clk 0:00:32.4]} 43... Kf8 {[%clk 0:00:08.1]} 44. g4 {[%clk 0:00:33]}
44... Ke7 {[%clk 0:00:07.3]} 45. Kg3 {[%clk 0:00:31]} 45... Kf8 {[%clk 0:00:07]}
46. Rb4 {[%clk 0:00:28.4]} 46... Kg7 {[%clk 0:00:06]} 47. Rf4 {[%clk 0:00:26.8]}
47... Nd5 {[%clk 0:00:04.8]} 48. Rd4 {[%clk 0:00:21.6]} 48... Nf6 {[%clk
0:00:05]} 49. g5 {[%clk 0:00:18.2]} 49... Ng8 {[%clk 0:00:03]} 50. Bd3 {[%clk
0:00:17.5]} 50... Ne7 {[%clk 0:00:03]} 51. f4 {[%clk 0:00:18]} 1-0

[Event "Early-Titled-Tuesday-Blitz-January-23-2024"]
[Site "Chess.com"]
[Date "2024.01.23"]
[Round "4"]
[White "Goffredo_Fofi"]
[Black "Arystanner"]
[Result "0-1"]
[WhiteElo "2548"]
[BlackElo "2784"]
[TimeControl "180+1"]
[EndTime "8:39:16 PST"]
[Termination "Arystanner won by resignation"]

1. d4 {[%clk 0:03:00.9]} 1... d5 {[%clk 0:02:54.1]} 2. Bf4 {[%clk 0:02:59.3]}
2... Nf6 {[%clk 0:02:54.1]} 3. e3 {[%clk 0:02:59.6]} 3... e6 {[%clk 0:02:54.8]}
4. Nd2 {[%clk 0:02:59.1]} 4... c5 {[%clk 0:02:55.5]} 5. c3 {[%clk 0:02:56.9]}
5... Nc6 {[%clk 0:02:55.9]} 6. Ngf3 {[%clk 0:02:57.1]} 6... Be7 {[%clk
0:02:53.5]} 7. Bd3 {[%clk 0:02:56.9]} 7... Nh5 {[%clk 0:02:53.4]} 8. Be5 {[%clk
0:02:55.8]} 8... f6 {[%clk 0:02:48.5]} 9. Bg3 {[%clk 0:02:52.8]} 9... g6 {[%clk
0:02:48.9]} 10. Rc1 {[%clk 0:02:10.4]} 10... O-O {[%clk 0:02:47.2]} 11. c4
{[%clk 0:02:03]} 11... cxd4 {[%clk 0:02:45.2]} 12. exd4 {[%clk 0:02:02.5]} 12...
Bd7 {[%clk 0:02:30.4]} 13. O-O {[%clk 0:01:58]} 13... Nxg3 {[%clk 0:02:30.3]}
14. hxg3 {[%clk 0:01:58.8]} 14... Kg7 {[%clk 0:02:31]} 15. Re1 {[%clk 0:01:58]}
15... Re8 {[%clk 0:02:28.2]} 16. a3 {[%clk 0:01:54.8]} 16... Qb6 {[%clk
0:02:28.2]} 17. Nb3 {[%clk 0:01:34.9]} 17... Rac8 {[%clk 0:02:19.1]} 18. Qd2
{[%clk 0:01:33.5]} 18... Qxb3 {[%clk 0:02:17.4]} 19. c5 {[%clk 0:01:27.5]} 19...
Qa4 {[%clk 0:02:05.9]} 20. b4 {[%clk 0:01:23.4]} 20... a6 {[%clk 0:01:49.6]} 21.
Bc2 {[%clk 0:00:55]} 21... Qxa3 {[%clk 0:01:48.6]} 22. Rb1 {[%clk 0:00:55.7]}
22... a5 {[%clk 0:01:31.5]} 23. Rb3 {[%clk 0:00:13.5]} 23... Qa2 {[%clk
0:01:30.8]} 24. Reb1 {[%clk 0:00:14]} 24... axb4 {[%clk 0:01:30.1]} 25. R3b2
{[%clk 0:00:14.2]} 25... Qa7 {[%clk 0:01:30]} 26. g4 {[%clk 0:00:13.2]} 26... h6
{[%clk 0:01:28.8]} 27. Nh4 {[%clk 0:00:11.9]} 27... f5 {[%clk 0:01:28]} 28. Nf3
{[%clk 0:00:09.2]} 28... Bf6 {[%clk 0:01:23.6]} 29. gxf5 {[%clk 0:00:06.6]}
29... exf5 {[%clk 0:01:23.7]} 30. Qf4 {[%clk 0:00:06.3]} 30... Qb8 {[%clk
0:01:21.9]} 31. Qd2 {[%clk 0:00:05.8]} 31... Qc7 {[%clk 0:01:20.3]} 32. Bd3
{[%clk 0:00:05.5]} 32... Nxd4 {[%clk 0:01:16.7]} 33. Nxd4 {[%clk 0:00:05.6]}
33... Bxd4 {[%clk 0:01:17.6]} 34. Rxb4 {[%clk 0:00:06.2]} 34... Qxc5 {[%clk
0:01:14.3]} 35. Rxb7 {[%clk 0:00:06.4]} 35... Re7 {[%clk 0:01:12.6]} 36. Bb5
{[%clk 0:00:04.5]} 36... Bxb5 {[%clk 0:01:10.9]} 37. Rxe7+ {[%clk 0:00:04.6]}
37... Qxe7 {[%clk 0:01:08.8]} 38. Qxd4+ {[%clk 0:00:05.5]} 38... Qf6 {[%clk
0:01:09.4]} 39. Qxf6+ {[%clk 0:00:05.6]} 39... Kxf6 {[%clk 0:01:10.3]} 40. Rxb5
{[%clk 0:00:06]} 40... Ke5 {[%clk 0:01:09.6]} 41. Rb6 {[%clk 0:00:06.2]} 41...
d4 {[%clk 0:01:07.8]} 42. Kf1 {[%clk 0:00:05.9]} 42... Rc1+ {[%clk 0:01:01.9]}
43. Ke2 {[%clk 0:00:06.2]} 43... Rc2+ {[%clk 0:01:02.2]} 44. Ke1 {[%clk
0:00:06.7]} 44... g5 {[%clk 0:00:57.4]} 45. Rxh6 {[%clk 0:00:06.6]} 45... d3
{[%clk 0:00:56.6]} 46. Rh8 {[%clk 0:00:06.6]} 46... Re2+ {[%clk 0:00:55.8]} 47.
Kf1 {[%clk 0:00:07]} 47... Ra2 {[%clk 0:00:56.5]} 48. Ke1 {[%clk 0:00:07.3]}
48... Ra1+ {[%clk 0:00:46.4]} 49. Kd2 {[%clk 0:00:07]} 49... Rf1 {[%clk
0:00:47]} 50. Re8+ {[%clk 0:00:05.7]} 50... Kf4 {[%clk 0:00:46.6]} 51. Kxd3
{[%clk 0:00:03]} 51... Rxf2 {[%clk 0:00:46.8]} 52. Re2 {[%clk 0:00:03.2]} 52...
Kg3 {[%clk 0:00:29.7]} 53. Re5 {[%clk 0:00:01]} 53... Kxg2 {[%clk 0:00:29]} 54.
Re7 {[%clk 0:00:01.9]} 54... g4 {[%clk 0:00:29.1]} 55. Rg7 {[%clk 0:00:02.8]}
55... g3 {[%clk 0:00:29.7]} 56. Ke3 {[%clk 0:00:03.1]} 56... f4+ {[%clk
0:00:30.1]} 57. Ke4 {[%clk 0:00:03.2]} 57... Kf1 {[%clk 0:00:27.5]} 58. Rg4
{[%clk 0:00:02.6]} 58... g2 {[%clk 0:00:27.7]} 59. Rxg2 {[%clk 0:00:02.3]} 59...
Kxg2 {[%clk 0:00:27.6]} 0-1

[Event "Early-Titled-Tuesday-Blitz-January-23-2024"]
[Site "Chess.com"]
[Date "2024.01.23"]
[Round "4"]
[White "vladgoncharov"]
[Black "Nekoo04"]
[Result "1-0"]
[WhiteElo "2641"]
[BlackElo "2364"]
[TimeControl "180+1"]
[EndTime "8:39:16 PST"]
[Termination "vladgoncharov won by resignation"]

1. d4 {[%clk 0:03:00.9]} 1... Nf6 {[%clk 0:02:28.1]} 2. c4 {[%clk 0:02:59.2]}
2... e6 {[%clk 0:02:28.6]} 3. Nc3 {[%clk 0:02:58.9]} 3... d5 {[%clk 0:02:29.4]}
4. cxd5 {[%clk 0:02:57.7]} 4... exd5 {[%clk 0:02:30.3]} 5. Bg5 {[%clk
0:02:57.5]} 5... c6 {[%clk 0:02:30.6]} 6. e3 {[%clk 0:02:57.4]} 6... h6 {[%clk
0:02:26]} 7. Bh4 {[%clk 0:02:57]} 7... Be7 {[%clk 0:02:17.4]} 8. Bd3 {[%clk
0:02:56.2]} 8... Nbd7 {[%clk 0:02:17.5]} 9. Nge2 {[%clk 0:02:55.2]} 9... Nh5
{[%clk 0:02:17.1]} 10. Bxe7 {[%clk 0:02:50.9]} 10... Qxe7 {[%clk 0:02:18]} 11.
O-O {[%clk 0:02:48.9]} 11... O-O {[%clk 0:02:17.5]} 12. Bc2 {[%clk 0:02:23.9]}
12... Nb6 {[%clk 0:02:06.3]} 13. Qd3 {[%clk 0:02:21.9]} 13... f5 {[%clk
0:02:06.9]} 14. b3 {[%clk 0:02:17.2]} 14... Bd7 {[%clk 0:02:06.1]} 15. Nf4
{[%clk 0:02:03]} 15... Nxf4 {[%clk 0:02:02.7]} 16. exf4 {[%clk 0:02:02.9]} 16...
Rae8 {[%clk 0:01:50]} 17. Qd2 {[%clk 0:02:02.2]} 17... Na8 {[%clk 0:01:46.3]}
18. Rfe1 {[%clk 0:01:56]} 18... Qb4 {[%clk 0:01:38.9]} 19. Re5 {[%clk
0:01:54.4]} 19... Nc7 {[%clk 0:01:38.8]} 20. a3 {[%clk 0:01:52.1]} 20... Qa5
{[%clk 0:01:30]} 21. b4 {[%clk 0:01:44.4]} 21... Qa6 {[%clk 0:01:28.5]} 22. Na4
{[%clk 0:01:43.3]} 22... Ne6 {[%clk 0:01:00.7]} 23. Nc5 {[%clk 0:01:16.7]} 23...
Nxc5 {[%clk 0:00:58.5]} 24. bxc5 {[%clk 0:01:17.6]} 24... Rxe5 {[%clk
0:00:48.8]} 25. fxe5 {[%clk 0:01:16.6]} 25... b6 {[%clk 0:00:48]} 26. Bd3 {[%clk
0:01:04.3]} 26... Qa4 {[%clk 0:00:46.6]} 27. Qc3 {[%clk 0:01:02.2]} 27... Rb8
{[%clk 0:00:38.4]} 28. Qb4 {[%clk 0:01:00.7]} 28... Qxb4 {[%clk 0:00:27.5]} 29.
axb4 {[%clk 0:01:00.2]} 29... bxc5 {[%clk 0:00:27.8]} 30. bxc5 {[%clk
0:01:00.3]} 30... Rb7 {[%clk 0:00:25.5]} 31. Kf1 {[%clk 0:00:57.6]} 31... Kf7
{[%clk 0:00:21.4]} 32. g3 {[%clk 0:00:54.6]} 32... g6 {[%clk 0:00:21.2]} 33. h4
{[%clk 0:00:53.9]} 33... Ke7 {[%clk 0:00:19.4]} 34. Ke2 {[%clk 0:00:53.5]} 34...
h5 {[%clk 0:00:19.6]} 35. Kd2 {[%clk 0:00:52.6]} 35... Rb2+ {[%clk 0:00:19.2]}
36. Ke3 {[%clk 0:00:52.6]} 36... f4+ {[%clk 0:00:17.8]} 37. gxf4 {[%clk
0:00:50.8]} 37... Rb7 {[%clk 0:00:12.8]} 38. Bxg6 {[%clk 0:00:49.3]} 38... Rb3+
{[%clk 0:00:13.1]} 39. Kd2 {[%clk 0:00:44.3]} 39... Rb2+ {[%clk 0:00:13.2]} 40.
Ke1 {[%clk 0:00:42]} 40... Rb4 {[%clk 0:00:06.9]} 41. Rxa7 {[%clk 0:00:39.8]}
41... Kd8 {[%clk 0:00:06.2]} 42. f5 {[%clk 0:00:39.8]} 42... Rxd4 {[%clk
0:00:06.1]} 43. e6 {[%clk 0:00:33]} 43... Re4+ {[%clk 0:00:05.5]} 44. Kf1 {[%clk
0:00:31]} 44... Bxe6 {[%clk 0:00:06.4]} 45. fxe6 {[%clk 0:00:31.1]} 45... Rxe6
{[%clk 0:00:07.3]} 46. Bxh5 {[%clk 0:00:27.9]} 46... Rh6 {[%clk 0:00:07.9]} 47.
Bg4 {[%clk 0:00:27.4]} 47... Rxh4 {[%clk 0:00:08.8]} 48. f3 {[%clk 0:00:27.9]}
48... Rh1+ {[%clk 0:00:08.6]} 49. Kf2 {[%clk 0:00:25.3]} 49... Rc1 {[%clk
0:00:09.5]} 50. Ra5 {[%clk 0:00:22.7]} 50... d4 {[%clk 0:00:09.7]} 51. Ke2
{[%clk 0:00:22.5]} 51... Rc3 {[%clk 0:00:10]} 52. Kd2 {[%clk 0:00:22.4]} 52...
Ke7 {[%clk 0:00:09]} 53. f4 {[%clk 0:00:17.2]} 53... Kf6 {[%clk 0:00:09.1]} 54.
Bd7 {[%clk 0:00:16.2]} 54... Rf3 {[%clk 0:00:06.6]} 55. Bxc6 {[%clk 0:00:16.2]}
55... Rxf4 {[%clk 0:00:07.5]} 56. Kd3 {[%clk 0:00:16.2]} 56... Ke5 {[%clk
0:00:07.8]} 57. Bb7 {[%clk 0:00:16.5]} 57... Rf3+ {[%clk 0:00:08]} 58. Bxf3
{[%clk 0:00:15.6]} 1-0

[Event "Early-Titled-Tuesday-Blitz-January-23-2024"]
[Site "Chess.com"]
[Date "2024.01.23"]
[Round "4"]
[White "santosalberto1987"]
[Black "CSB7"]
[Result "1/2-1/2"]
[WhiteElo "2540"]
[BlackElo "2740"]
[TimeControl "180+1"]
[EndTime "8:39:17 PST"]
[Termination "Game drawn - insufficient material"]

1. e4 {[%clk 0:02:57]} 1... c5 {[%clk 0:02:59.8]} 2. Nf3 {[%clk 0:02:57.1]} 2...
d6 {[%clk 0:03:00.5]} 3. Bb5+ {[%clk 0:02:56.8]} 3... Bd7 {[%clk 0:03:00.1]} 4.
c4 {[%clk 0:02:56.5]} 4... g6 {[%clk 0:02:47.2]} 5. Nc3 {[%clk 0:02:53.5]} 5...
Bg7 {[%clk 0:02:46.9]} 6. Bxd7+ {[%clk 0:02:53.3]} 6... Qxd7 {[%clk 0:02:39.8]}
7. d4 {[%clk 0:02:53.1]} 7... cxd4 {[%clk 0:01:59.3]} 8. Nxd4 {[%clk 0:02:54]}
8... Nf6 {[%clk 0:01:59.7]} 9. f3 {[%clk 0:02:52.4]} 9... O-O {[%clk 0:01:57.1]}
10. Be3 {[%clk 0:02:51.1]} 10... Nc6 {[%clk 0:01:40.3]} 11. Rc1 {[%clk
0:02:49.5]} 11... Rfd8 {[%clk 0:01:32.3]} 12. O-O {[%clk 0:02:47.6]} 12... e6
{[%clk 0:01:31.9]} 13. Qd2 {[%clk 0:02:44.5]} 13... Rac8 {[%clk 0:01:16.5]} 14.
b3 {[%clk 0:02:44.1]} 14... d5 {[%clk 0:01:08.4]} 15. Nxc6 {[%clk 0:02:35.1]}
15... bxc6 {[%clk 0:00:51.8]} 16. e5 {[%clk 0:02:34]} 16... Ne8 {[%clk
0:00:52.4]} 17. f4 {[%clk 0:02:26.7]} 17... d4 {[%clk 0:00:28.4]} 18. Rfd1
{[%clk 0:02:17.2]} 18... Qe7 {[%clk 0:00:20.8]} 19. Bxd4 {[%clk 0:01:40]} 19...
c5 {[%clk 0:00:21.1]} 20. Bxc5 {[%clk 0:01:39.8]} 20... Qxc5+ {[%clk 0:00:13]}
21. Qf2 {[%clk 0:01:40]} 21... Qxf2+ {[%clk 0:00:13]} 22. Kxf2 {[%clk
0:01:40.9]} 22... f6 {[%clk 0:00:13.6]} 23. exf6 {[%clk 0:01:37.8]} 23... Bxf6
{[%clk 0:00:12.4]} 24. Ne4 {[%clk 0:01:38.1]} 24... Be7 {[%clk 0:00:12.6]} 25.
Re1 {[%clk 0:01:28.9]} 25... Kf7 {[%clk 0:00:10.3]} 26. Rc2 {[%clk 0:01:26.8]}
26... Nd6 {[%clk 0:00:09.8]} 27. Rce2 {[%clk 0:01:22.2]} 27... Nxe4+ {[%clk
0:00:09.6]} 28. Rxe4 {[%clk 0:01:23.1]} 28... Rd2+ {[%clk 0:00:09.3]} 29. R1e2
{[%clk 0:01:23.6]} 29... Bc5+ {[%clk 0:00:05.4]} 30. Kf3 {[%clk 0:01:23.2]}
30... Rxe2 {[%clk 0:00:03.2]} 31. Kxe2 {[%clk 0:01:22.7]} 31... Rd8 {[%clk
0:00:03.8]} 32. Re5 {[%clk 0:01:20.3]} 32... Bd4 {[%clk 0:00:04.3]} 33. Rb5
{[%clk 0:01:19.3]} 33... Kf6 {[%clk 0:00:04.2]} 34. Rb7 {[%clk 0:01:18.5]} 34...
h5 {[%clk 0:00:04.7]} 35. g3 {[%clk 0:01:17.6]} 35... Bg1 {[%clk 0:00:04.6]} 36.
h3 {[%clk 0:01:17.2]} 36... Bh2 {[%clk 0:00:04.3]} 37. Kf3 {[%clk 0:01:16.3]}
37... Rd3+ {[%clk 0:00:04.2]} 38. Kg2 {[%clk 0:01:16.4]} 38... Rd2+ {[%clk
0:00:04.2]} 39. Kf3 {[%clk 0:01:16.4]} 39... Rxa2 {[%clk 0:00:04.9]} 40. g4
{[%clk 0:01:15]} 40... hxg4+ {[%clk 0:00:04.7]} 41. hxg4 {[%clk 0:01:15.9]}
41... g5 {[%clk 0:00:04.3]} 42. fxg5+ {[%clk 0:01:12.3]} 42... Kxg5 {[%clk
0:00:05.2]} 43. Rg7+ {[%clk 0:01:11.7]} 43... Kf6 {[%clk 0:00:05.3]} 44. Rb7
{[%clk 0:01:12.4]} 44... Be5 {[%clk 0:00:05.2]} 45. Ke4 {[%clk 0:01:12]} 45...
Re2+ {[%clk 0:00:04.8]} 46. Kd3 {[%clk 0:01:12]} 46... Re1 {[%clk 0:00:03.9]}
47. Rxa7 {[%clk 0:01:11.8]} 47... Rb1 {[%clk 0:00:03.6]} 48. Rb7 {[%clk
0:01:10.6]} 48... Kg5 {[%clk 0:00:03.9]} 49. c5 {[%clk 0:01:10.6]} 49... Kxg4
{[%clk 0:00:03.8]} 50. b4 {[%clk 0:01:06.9]} 50... Kf5 {[%clk 0:00:03.4]} 51. b5
{[%clk 0:01:05.9]} 51... Rd1+ {[%clk 0:00:04]} 52. Ke2 {[%clk 0:01:05.7]} 52...
Rc1 {[%clk 0:00:03.9]} 53. c6 {[%clk 0:01:05.6]} 53... Bd6 {[%clk 0:00:04.3]}
54. Rd7 {[%clk 0:01:04.9]} 54... Ke5 {[%clk 0:00:04.3]} 55. Kd2 {[%clk
0:01:02.8]} 55... Rc5 {[%clk 0:00:03.4]} 56. Rb7 {[%clk 0:00:56]} 56... Kd5
{[%clk 0:00:04]} 57. Kd3 {[%clk 0:00:55.5]} 57... e5 {[%clk 0:00:04.3]} 58. Ke3
{[%clk 0:00:49.4]} 58... Rc3+ {[%clk 0:00:03.9]} 59. Kd2 {[%clk 0:00:49.6]}
59... Rc5 {[%clk 0:00:04.5]} 60. Ke3 {[%clk 0:00:48.4]} 60... Kc4 {[%clk
0:00:04]} 61. Rd7 {[%clk 0:00:47]} 61... Rd5 {[%clk 0:00:03.7]} 62. b6 {[%clk
0:00:46.1]} 62... Bc5+ {[%clk 0:00:03.3]} 63. Ke4 {[%clk 0:00:45.8]} 63... Rxd7
{[%clk 0:00:02.6]} 64. cxd7 {[%clk 0:00:45.9]} 64... Bxb6 {[%clk 0:00:03.5]} 65.
Kxe5 {[%clk 0:00:45.7]} 65... Bd8 {[%clk 0:00:04.4]} 66. Ke6 {[%clk 0:00:45.7]}
66... Kc5 {[%clk 0:00:05.3]} 67. Kf7 {[%clk 0:00:46.1]} 67... Kd6 {[%clk
0:00:05.9]} 68. Ke8 {[%clk 0:00:46.6]} 68... Kc7 {[%clk 0:00:06.8]} 69. Kf7
{[%clk 0:00:46.7]} 69... Kxd7 {[%clk 0:00:07.7]} 1/2-1/2